Cogmind - Beta 17.1 @@@ ROGUE MODE // 2026.08.25 @ 12:12:06 Player: Zane Result: Destroyed by G-47 Trooper with Particle Gun Performance ------------- Evolutions (0) 0 Regions Visited (4) 800 Robots Destroyed (22) 110 Value Destroyed (620) 620 Prototype IDs (23) 460 Alien Tech Used (0) 0 Bonus (300) 300 TOTAL SCORE: 2290 Bonus ------- Aligned with FarCom 300 Cogmind --------- Core Integrity 0/250 Matter 240/300 Energy 100/100 System Corruption 2% Temperature Cool (14) Movement Walking (400) Ox4 Location -9/Mines Parts ------- > --- POWER (1) -------- (None) > --- PROPULSION (2) --- Aluminum Leg Aluminum Leg > --- UTILITY (2) ------ Huge Storage Unit Targeting Computer > --- WEAPON (2) ------- Small Laser Grenade Launcher > --- INVENTORY (25) --- Aluminum Leg Aluminum Leg Aluminum Leg Aluminum Leg Improved Heat Sink Small Storage Unit Medium Matter Pod (84) Visual Processing Unit Power Shielding Weapon Shielding Light Armor Plating Tractor Beam Particle Gun XL Autogun Array Mining Laser Mining Laser Peak State ------------ > --- POWER ------------ (None) > --- PROPULSION ------- Aluminum Leg Aluminum Leg > --- UTILITY ---------- Huge Storage Unit Targeting Computer > --- WEAPON ----------- Small Laser Particle Gun > --- INVENTORY -------- Aluminum Leg Aluminum Leg Aluminum Leg Aluminum Leg Improved Heat Sink Small Storage Unit Visual Processing Unit Power Shielding Weapon Shielding Light Armor Plating Tractor Beam XL Autogun Array Grenade Launcher Mining Laser Mining Laser [Rating: 12] Favorites ----------- Power Ion Engine Engine Ion Engine Propulsion Light Treads Treads Light Treads Leg Aluminum Leg Wheel Compact Wheel Utility Huge Storage Unit Device Seismic Detector Storage Huge Storage Unit Processor Targeting Computer Weapon Small Laser Energy Gun Small Laser Ballistic Gun Light Assault Rifle Launcher Grenade Launcher Build | -11 -10 -10 -10 -9 ------- Run | Yrd Mat Min Exi Min Slots Evolved . | . . . . . Power . | . . . . . Propulsion . | . . . . . Utility . | . . . . . Weapon . | . . . . . Parts Attached 18 | 7 9 2 . . Power 2 | 1 1 . . . Engine 2 | 1 1 . . . Core . | . . . . . Reactor . | . . . . . Propulsion 5 | 2 2 1 . . Treads 2 | 2 . . . . Leg 2 | . 1 1 . . Wheel 1 | . 1 . . . Hover . | . . . . . Flight . | . . . . . Utility 4 | 2 2 . . . Device 1 | 1 . . . . Storage 2 | 1 1 . . . Processor 1 | . 1 . . . Hackware . | . . . . . Protection . | . . . . . Artifact . | . . . . . Weapon 7 | 2 4 1 . . Energy Gun 4 | . 3 1 . . Energy Cannon . | . . . . . Ballistic Gun 2 | 2 . . . . Ballistic Cannon . | . . . . . Launcher 1 | . 1 . . . Special Weapon . | . . . . . Impact Weapon . | . . . . . Slashing Weapon . | . . . . . Piercing Weapon . | . . . . . Special Melee Weapon . | . . . . . Unidentified Prototypes . | . . . . . Parts Lost 10 | . 7 3 . . Power 2 | . 1 1 . . Propulsion 3 | . 2 1 . . Utility 1 | . 1 . . . Weapon 4 | . 3 1 . . Highest Loss Streak 3 | . 3 3 . . To Critical Strikes . | . . . . . Average Backups 12 | 3 10 13 14 16 Power . | . . . . . Propulsion 3 | 2 2 3 4 4 Utility 5 | . 4 7 7 8 Weapon 2 | . 2 3 3 4 Tool/Special . | . . . . . Unused Backups 15 | . . 1 . 14 Power . | . . . . . Propulsion 4 | . . . . 4 Utility 8 | . . 1 . 7 Weapon 3 | . . . . 3 Tool/Special . | . . . . . Average Slot Usage (%) 91 | . 97 85 85 85 Engine 7 | . 13 . . . Treads 13 | . 24 . . . Leg 13 | . . 26 28 28 Wheel 1 | . 1 . . . Device 3 | . 7 . . . Storage 14 | . 14 14 14 14 Processor 9 | . 4 14 14 14 Energy Gun 15 | . 4 28 28 14 Ballistic Gun 10 | . 19 . . . Launcher 2 | . 4 . . 14 Peak Build Rating 12 | 7 10 10 12 11 Average Rating 8 | 4 7 8 9 11 On Entrance 7 | . 7 10 8 12 Avg Prop Armor Cover (%) 11 | . 11 . . . Naked Turns . | . . . . . Heaviest Build 89 | 14 89 84 84 . Greatest Support 40 | 40 40 20 20 . Greatest Overweight (x) 5 | 3 5 4 4 . Average Overweight (x) 3 | 1 2 4 4 . Largest Inventory Capacity 25 | 8 25 25 25 25 Average Capacity 24 | 7 24 25 25 25 Most Carried 19 | 4 15 15 19 19 Average Carried 12 | 3 10 13 15 19 Final Capacity 25 | 8 25 25 25 25 Final Carried 19 | 4 15 14 19 19 Class Distribution -------------------- 100% | Mutant Dominant Class ---------------- Mutant | -10/Materials Mutant | -10/Mines Mutant | -10/Exiles Mutant | -9/Mines Resources | -11 -10 -10 -10 -9 ----------- Run | Yrd Mat Min Exi Min Matter Collected 606 | 195 375 20 16 . Remotely . | . . . . . Salvage Created 943 | 26 800 87 . 30 Parts 52 | 4 42 2 . 4 Haulers Intercepted . | . . . . . Recyclers Shooed . | . . . . . Parts Field Recycled . | . . . . . Retrieved Matter . | . . . . . Parts Self-Destructed . | . . . . . Prevented . | . . . . . Parts Restored . | . . . . . Kills | -11 -10 -10 -10 -9 ------- Run | Yrd Mat Min Exi Min Combat Hostiles Destroyed 15 | . 12 2 . 1 Guns 10 | . 8 2 . . AOE 5 | . 4 . . 1 Classes Destroyed 5 | 1 4 . . . Worker 1 | . 1 . . . Tunneler 1 | 1 . . . . Recycler 3 | . 3 . . . Watcher 2 | . 2 . . . Grunt 15 | . 12 2 . 1 Best Kill Streak 6 | 1 6 2 . 1 Combat Bots Only 5 | . 5 2 . 1 Max Kills in Single Turn 4 | 1 4 1 . 1 Gunslinging . | . . . . . Exploded 3 | . 3 . . 1 Melee . | . . . . . Uniques/NPCs Destroyed . | . . . . . Combat | -11 -10 -10 -10 -9 -------- Run | Yrd Mat Min Exi Min Hostile Shots Fired 108 | . 82 16 . 10 Missed 26 | . 23 2 . 1 Hits 82 | . 59 14 . 9 Projectile 82 | . 59 14 . 9 Critical Strikes 1 | . 1 . . . Damage Taken 1196 | . 774 202 . 220 Core 255 | . 93 80 . 82 Absorbed by Shields . | . . . . . Core Remaining (%) 100 | 100 . . . . Volleys Fired 79 | 1 65 8 . 5 Largest 2 | 2 2 2 . 2 Hottest 105 | 40 105 105 . 70 Shots Fired 153 | 2 127 16 1 7 Gun 145 | 2 124 16 1 2 Cannon . | . . . . . Launcher 8 | . 3 . . 5 Special . | . . . . . Kinetic 92 | 2 90 . . . Thermal 53 | . 34 16 1 2 Explosive 8 | . 3 . . 5 Electromagnetic . | . . . . . Robot Hit Streak 8 | 1 8 8 . 5 Robot Miss Streak 2 | . 2 2 . . Penetration Max . | . . . . . Secondary Targets 2 | . 1 1 . . Max Gunslinging Chain 1 | . 1 1 . . Shots Hit Robots 96 | 1 81 12 . 2 Core Hits 44 | 1 34 4 . 5 Critical Kills . | . . . . . Critical Parts Destroyed . | . . . . . Critical Strikes 2 | . . 2 . . Burn 2 | . . 2 . . Melee Attacks . | . . . . . Impact . | . . . . . Slashing . | . . . . . Piercing . | . . . . . Sneak Attacks . | . . . . . Combat Hostiles . | . . . . . Follow-up Attacks . | . . . . . Damage Inflicted 1453 | 14 1070 175 . 194 Guns 1040 | 14 848 167 . 11 Cannons . | . . . . . Explosions 373 | . 190 . . 183 Melee . | . . . . . Ramming 40 | . 32 8 . . Kinetic 591 | 14 577 . . . Thermal 449 | . 271 167 . 11 Explosive 373 | . 190 . . 183 Electromagnetic . | . . . . . Impact . | . . . . . Slashing . | . . . . . Piercing . | . . . . . Highest Corruption 2 | . 2 2 2 2 Average Corruption 2 | . 2 2 2 2 Corruption Purged . | . . . . . Corruption Blocked . | . . . . . Effects 34 | . 18 4 12 . Message Errors 8 | . 4 2 2 . Matter Fused 8 | . 5 . 3 . Heat Flow Errors 4 | . 1 1 2 . Energy Discharges 4 | . 3 . 1 . Data Loss (minor) 1 | . . . 1 . Data Loss (major) 3 | . 2 1 . . Misfires 3 | . 2 . 1 . Alerts 2 | . . . 2 . Weapon Failures 1 | . 1 . . . Overload Shots . | . . . . . Overflow Damage . | . . . . . Projectiles . | . . . . . Explosions . | . . . . . Melee . | . . . . . Knockbacks . | . . . . . Impact . | . . . . . Kinetic . | . . . . . Secondary . | . . . . . Self-Inflicted Damage 90 | . . . . 90 Shots 4 | . . . . 4 Rammed 3 | . 3 . . . Targets Rammed 5 | . 3 2 . . Kicked 2 | . . 2 . . Crushed . | . . . . . Highest Temperature 339 | . 196 339 208 29 Average Temperature 86 | . 56 177 85 18 Received Heat Transfer 642 | . 453 114 . 75 Siege Activations . | . . . . . Martial Activations . | . . . . . Shielding Activations . | . . . . . Robots Disrupted . | . . . . . Combat Hostiles . | . . . . . Robots Corrupted . | . . . . . Combat Hostiles . | . . . . . Parts Fried . | . . . . . Impact Corruptions . | . . . . . Robots Melted . | . . . . . Combat Hostiles . | . . . . . Parts Melted 4 | . 1 3 . . Heat Transferred 1169 | . 624 520 . 25 Parts Sabotaged . | . . . . . Parts Stolen . | . . . . . Parts Stripped . | . . . . . Power Chain Reactions . | . . . . . Alert | -11 -10 -10 -10 -9 ------- Run | Yrd Mat Min Exi Min Maximum Alert Level . | . . . . . Low Security (%) 100 | 100 100 100 . 100 Level 1 . | . . . . . Level 2 . | . . . . . Level 3 . | . . . . . Level 4 . | . . . . . Level 5 . | . . . . . High Security . | . . . . . Max Security . | . . . . . Peak Influence 133 | 5 133 30 . 38 Initial 18 | . . 18 . . Average 25 | . 31 4 . 24 Influence Increases 453 | 5 360 50 . 38 Destroy 0b10 Robot/C 300 | . 240 40 . 20 Destroy 0b10 Robot/NC 35 | 5 30 . . . Destroy Leader 74 | . 64 10 . . Destroy Structure 44 | . 26 . . 18 Influence Decreases 415 | 5 313 97 . . Entered New Map 29 | . . 29 . . Time Decay 312 | 5 267 40 . . Lost Part 74 | . 46 28 . . Squads Dispatched 3 | . 3 . . . Investigation . | . . . . . Extermination . | . . . . . Reinforcement 3 | . 3 . . . Assault . | . . . . . Garrison . | . . . . . Intercept . | . . . . . Searches Triggered . | . . . . . Construction Impeded . | . . . . . Haulers Reinforced . | . . . . . Active Scanning Responses . | . . . . . Cargo Convoy Interrupts . | . . . . . Stealth | -11 -10 -10 -10 -9 --------- Run | Yrd Mat Min Exi Min Distress Signals 2 | . 2 . . . Communications Jammed . | . . . . . Distress Signals . | . . . . . Times Spotted 31 | . 27 2 . 2 Peak Tracking Total 5 | . 5 2 . 2 Tactical Retreats . | . . . . . Traps | -11 -10 -10 -10 -9 ------- Run | Yrd Mat Min Exi Min Traps Triggered 1 | . 1 . . . Indirectly . | . . . . . Trap Hack Attempts . | . . . . . Triggered . | . . . . . Disarmed . | . . . . . Reprogrammed . | . . . . . Reused . | . . . . . Traps Extracted . | . . . . . Installed . | . . . . . Triggered . | . . . . . Machines | -11 -10 -10 -10 -9 ---------- Run | Yrd Mat Min Exi Min Machines Disabled . | . . . . . Max in Single Turn . | . . . . . Machines Repaired . | . . . . . Machines Dismantled . | . . . . . Machines Sabotaged . | . . . . . Overloaded Fab Kills . | . . . . . Hacking | -11 -10 -10 -10 -9 --------- Run | Yrd Mat Min Exi Min Machines Accessed 7 | . 5 1 1 . Terminals 6 | . 5 1 . . Fabricators . | . . . . . Repair Stations . | . . . . . Recycling Units . | . . . . . Scanalyzers . | . . . . . Garrison Access . | . . . . . Total Hacks 17 | . 14 2 1 . Successful 4 | . 3 . 1 . Failed 13 | . 11 2 . . Catastrophic 3 | . 2 1 . . Database Lockouts . | . . . . . Manual 12 | . 9 2 1 . Terminals 16 | . 14 2 . . Fabricators . | . . . . . Repair Stations . | . . . . . Recycling Units . | . . . . . Scanalyzers . | . . . . . Garrison Access . | . . . . . Terminal Hacks 4 | . 3 . 1 . Robot Analysis 1 | . 1 . . . Hauler Manifests 1 | . 1 . . . Zone Layout 1 | . 1 . . . Proto ID Catalog 1 | . . . 1 . Fabricator Hacks . | . . . . . Repair Station Hacks . | . . . . . Recycling Unit Hacks . | . . . . . Scanalyzer . | . . . . . Garrison Access Hacks . | . . . . . Unauthorized Hacks . | . . . . . Terminals . | . . . . . Fabricators . | . . . . . Repair Stations . | . . . . . Recycling Units . | . . . . . Scanalyzers . | . . . . . Garrison Access . | . . . . . Data Cores Recovered . | . . . . . Used . | . . . . . Hacking Detections 6 | . 5 1 . . Full Trace Events . | . . . . . Feedback Events . | . . . . . Feedback Blocked . | . . . . . Robot Schematics Acquired . | . . . . . Robots Built . | . . . . . Authchips . | . . . . . Time . | . . . . . Total Robot Build Rating . | . . . . . Part Schematics Acquired . | . . . . . Parts Built . | . . . . . Authchips . | . . . . . Time . | . . . . . Total Part Build Rating . | . . . . . Part Studies Acquired . | . . . . . Parts Repaired . | . . . . . Time . | . . . . . Parts Recycled . | . . . . . Recycled Matter . | . . . . . Retrieved Matter . | . . . . . Retrieved Components . | . . . . . Parts Scanalyzed . | . . . . . Part Schematics Acquired . | . . . . . Parts Damaged . | . . . . . Bothacking | -11 -10 -10 -10 -9 ------------ Run | Yrd Mat Min Exi Min Used RIF Installer . | . . . . . Robots Hacked . | . . . . . Non-combat . | . . . . . Combat . | . . . . . Robot Hacks Applied . | . . . . . Relay Couplers Released . | . . . . . Fabnet Peak Effective % . | . . . . . Robots Rewired . | . . . . . Allies Hacked . | . . . . . Hacks Repelled . | . . . . . Allies | -11 -10 -10 -10 -9 -------- Run | Yrd Mat Min Exi Min Total Allies . | . . . . . Largest Group . | . . . . . Highest-Rated Group . | . . . . . Highest-Rated Ally . | . . . . . Total Orders . | . . . . . Ally Attacks . | . . . . . Total Damage . | . . . . . Kills . | . . . . . Allies Corrupted . | . . . . . Allies Melted . | . . . . . Intel | -11 -10 -10 -10 -9 ------- Run | Yrd Mat Min Exi Min Active Infowar (turns) 835 | 22 813 . . . Seismic 835 | 22 813 . . . Robot Analysis Total 1 | . 1 . . . Derelict Logs Recovered 1 | . . 1 . . Drone Launches . | . . . . . Drone Recoveries . | . . . . . Exploration | -11 -10 -10 -10 -9 ------------- Run | Yrd Mat Min Exi Min Turns Passed 2972 | 95 1546 321 998 12 Spaces Moved 825 | 46 457 72 250 . Core 19 | 19 . . . . Treads 385 | 27 358 . . . Legs 322 | . . 72 250 . Wheels 99 | . 99 . . . Hover . | . . . . . Flight . | . . . . . Fastest Speed 50 | 50 160 400 400 . Average Speed 323 | 165 284 400 400 . Slowest Speed 400 | 200 320 400 400 . Overloaded Moves . | . . . . . Propulsion Burnouts . | . . . . . Robots Hopped . | . . . . . Potential Cave-ins . | . . . . . Cave-ins Triggered . | . . . . . Exploration Rate (%) 34 | 4 90 19 59 2 Regions Visited 4 Branch Regions 3 Pre-discovered Areas . | . . . . . Known Exits Taken . | . . . . . Unknown Exits Taken 4 | 1 1 1 1 . Scrap Searched . | . . . . . Spaces Dug . | . . . . . Terrain Destroyed 69 | . 24 . . 45 Melee . | . . . . . Projectile . | . . . . . AOE 69 | . 24 . . 45 Terrain Rammed . | . . . . . Walls Destroyed . | . . . . . Machines Disabled . | . . . . . Actions | -11 -10 -10 -10 -9 --------- Run | Yrd Mat Min Exi Min Total 981 | 60 578 86 251 6 Wait 31 | 2 29 . . . Move 821 | 45 456 71 249 . Hop . | . . . . . Pick Up 25 | 5 16 2 2 . Fast Attach 7 | 6 1 . . . Attach 9 | 1 6 2 . . Detach . | . . . . . Swap 3 | . 2 . . 1 Drop 1 | . . 1 . . Fire 79 | 1 65 8 . 5 Melee . | . . . . . Ram . | . . . . . Kick 2 | . . 2 . . Crush 3 | . 3 . . . Escape Stasis . | . . . . . Rewire . | . . . . . Trap . | . . . . . Miscellaneous . | . . . . . Route ------- -11/Scrapyard -10/Materials (discovered 3 exits: [*Mat x2] / *Min) -10/Mines -10/Exiles (discovered 2 exits: [*Min x2]) -9/Mines History --------- Turn | Location | Event 37 | -11/Scrapyard | Discovered new exit (range 15) 96 | -11/Scrapyard | Entered Materials 307 | -10/Materials | Build established: Mutant 326 | -10/Materials | Discovered new exit (range 10) 672 | -10/Materials | Discovered new exit (range 6) 1441 | -10/Materials | Lost 3 parts (1p1n1w) 1634 | -10/Materials | Discovered new exit (range 6) 1642 | -10/Materials | Entered Mines 1649 | -10/Mines | Core integrity fell below 50% 1693 | -10/Mines | Lost 3 parts (1p1n1w) 1931 | -10/Mines | Learned Materials terminal intel 1943 | -10/Mines | Deemed a non-threat by the Exiles lab entrance 1947 | -10/Mines | Discovered new exit (range 5) 1963 | -10/Mines | Entered Exiles 2015 | -10/Exiles | Discovered new exit (range 15) 2063 | -10/Exiles | Met 8R-AWN 2135 | -10/Exiles | Met EX-HEX 2239 | -10/Exiles | Met EX-BIN 2387 | -10/Exiles | Aligned with FarCom system 2391 | -10/Exiles | Given EX-Vault access code 2483 | -10/Exiles | Opened EX-Vault 2507 | -10/Exiles | Found XL Autogun Array 2588 | -10/Exiles | Warned to stay clear of 0b10 Research branches 2712 | -10/Exiles | Met EX-DEC 2925 | -10/Exiles | Discovered new exit (range 10) 2961 | -10/Exiles | Left Exiles lab with XL Autogun Array 2961 | -10/Exiles | Entered Mines 2964 | -9/Mines | Core integrity fell below 20% 2973 | -9/Mines | Destroyed by G-47 Trooper with Particle Gun Last Messages --------------- here and steal a few of HEX's prototypes. 02622_ C7QADRCH#JZ,R,9C1W=R7Y2J>6 # 02667_ System corrupted: IFF burst signal emitted. EX-DEC: Ah I see we have a visitor. One wrong move in here and I'll invert your atomic chain! 02714_ EX-DEC: "Oops, I hope HEX didn't hear that..." 02844_ Extracted 16 matter. 02846_ RJD7U UJBS7T#AQ2K9GT 02848_ Acquired Med. Matter Pod. 02902_ System corrupted: Energy discharge (-34). 02925_ EXIT=FOUND 02932_ System corrupted: Component data lost. LOCATION=UNKNOWN GOAL=ESCAPE 02961_ Receiving FarCom transmissions... 02966_ G-34 Mercenary destroyed. 02967_ The unstable cave ceiling collapses. Map ----- +----------------------------------------------------+ | | | | | | | | | | | | | | | | | | | | | | | | | | | | | | | | | | | | | | | | | ?????????????????????????????????????????????????? | | ?????????????????????????????????????????????????? | | ??????????????????????###?###????????????????????? | | ?????????????????????## # ##???????????????????? | | ?????????????????????# ####????????????????? | | ?????????????????????# [@ #????????????????? | | ????????????????????# =%g # #????????????????? | | ????????????????????# * #??????????????????? | | ????????????????????# #??????????????????? | | ????????????????????### #??????????????????? | | ?????????????????????? ##??????????????????? | | ?????????????????????## ##???????????????????? | | ??????????????????????#######????????????????????? | | ?????????????????????????????????????????????????? | | ?????????????????????????????????????????????????? | | ?????????????????????????????????????????????????? | | ?????????????????????????????????????????????????? | | ?????????????????????????????????????????????????? | | ?????????????????????????????????????????????????? | | ?????????????????????????????????????????????????? | | ?????????????????????????????????????????????????? | | ?????????????????????????????????b???????????????? | | ?????????????????????????????????????????????????? | | ?????????????????????????????????????????????????? | | ?????????????????????????????????????????????????? | | ?????????????????????????????????????????????????? | | ?????????????????????????????????????????????????? | | ?????????????????????????????????????????????????? | | ?????????????????????????????????????????????????? | | ?????????????????????????????????????????????????? | +----------------------------------------------------+ Best States ------------- Heat Dissipation 25 Energy Generation 10 Energy Capacity 250 Matter Stores 300 Matter Capacity 300 Sight Range 16 Terrain Scan Density 10 Evasion (%) 40 Targeting Accuracy 5 Recoil Reduction 2 Item Schematics ----------------- None Robot Schematics ------------------ None Fabricated ------------ Nothing Repaired ---------- Nothing Studied --------- None Alien Tech Used ----------------- None Achievements -------------- None Challenges ------------ None Game ------ Seed LargeAerolevMesh Manual? 0 Play Time 00:13:54 Cumulative 59.1 hours Start 2026.08.25 @ 11:58:12 End 2026.08.25 @ 12:12:06 Sessions 1 Manual Loads 0 Difficulty Rogue Special Mode None Game No. 77 Rogue 77 Adventurer 0 Explorer 0 Win Type - Total 0 Types 0/0/0/0/0/0/0/0/0/0 Lore% 52 Gallery% 38 Achievement% 30 Wizard Run 0 Options --------- Layout 1 ASCII 0 Keyboard 0 Movement Numpad Keybinds 0 Fullscreen 2 Font 24/Smallcaps Map View 50x35 Zoom Use 0% Tactical HUD 1 Map Filters NONE Filters NONE Steam 1 RUN: 07fc77e9-8f93-4783-ad1e-83d7cc625f88